{"text_format":"3","workbook":"xlsx","n_sheets":13,"sheets":["Pradžia","Pagrindai","Įvadas į funkcijas","AVERAGE","MIN ir MAX","Data ir laikas","Teksto ir skaičių jungimas","IF sakiniai","VLOOKUP","Sąlyginės funkcijos","Funkcijų vedlys","Formulių klaidos","Sužinokite daugiau"],"not_rendered":{"images":30,"defined_names":20},"read":"whole","date_system":"1900"}

{"sheet":"Pradžia","index":0,"n_rows":4,"n_cols":1,"rows_kept":4}
[]
["Darbo su formulėmis pradžia"]
["Vos keliais veiksmais pradėsite kurti formules ir funkcijas „Excel“, efektyviausioje pasaulyje skaičiuoklės programoje."]
["Grįžkite į viršų paspaudę CTRL + HOME. Norėdami pradėti apžvalgą, paspauskite CTRL + PAGE DOWN."]

{"sheet":"Pagrindai","index":1,"n_rows":43,"n_cols":10,"rows_kept":43}
["Pagrindai: matematiniai skaičiavimai naudojant „Excel“"]
["Naudodami „Excel“ galite pridėti, atimti, dauginti ir dalyti nenaudodami jokių įtaisytųjų funkcijų. Tiesiog turite naudoti keletą paprastų operatorių: +, -, *, /. Visos formulės pradedamos lygybės (=) ženklu.\n",null,"Naudotini skaičiai:",null,"Operacija:","Formulės:","Atsakymai:"]
["Norėdami pridėti, pažymėkite langelį F3, įveskite =C3+C4 ir paspauskite Enter. \n",null,1,null,"Sudėtis (+) ",null,{"$f":"C3+C4","v":3}]
["Norėdami atimti, pažymėkite langelį F4, įveskite =C3-C4 ir paspauskite Enter. ",null,2,null,"Atimtis (-) ",null,{"$f":"C3-C4","v":-1}]
["Norėdami sudauginti, pažymėkite langelį F5, įveskite =C3*C4 ir paspauskite Enter.\n",{"$nulls":3},"Daugyba (*) ",null,{"$f":"C3*C4","v":2}]
["Norėdami padalyti, pažymėkite langelį F6, įveskite =C3/C4 ir paspauskite Enter.\n",{"$nulls":3},"Dalyba (/) ",null,{"$f":"C3/C4","v":0.5}]
["Pabandykite: pakeiskite skaičius langeliuose C3 ir C4 ir stebėkite, kaip automatiškai keičiasi formulės rezultatai.",{"$nulls":3},"Laipsnis (^) ",null,{"$f":"C3^C4","v":1}]
["PAPILDOMA UŽDUOTIS: Galite pakelti reikšmę laipsniu naudodami karato (^) simbolį, pvz., =A1^A2. Jis įvedamas paspaudus Shift + 6. Langelyje F7 įveskite =C3^C4."]
["Daugiau informacijos sužinosite išanalizavę išsamiau"]
["Kitas veiksmas"]
["Daugiau apie formules, langelius ir diapazonus"]
["„Excel“ sudaryta iš atskirų langelių, kurie sugrupuoti į eilutes ir stulpelius. Eilutės pažymėtos skaičiais, o stulpeliai – raidėmis. Yra daugiau nei 1 milijonas eilučių ir 16 000 stulpelių; galite įvesti formules ir funkcijas į bet kurį iš jų. \n"]
["Formulėse gali būti langelių koordinatės, langelių koordinačių diapazonai, operatoriai ir konstantos. Štai įvairūs formulių pavyzdžiai:\n\n=A1+B1\n=10+20\n=SUM(A1:A10)\n\n"]
["Turbūt pastebėjote, kad trečiajame pavyzdyje naudojome funkciją SUM. Funkcija yra iš anksto sukurta komanda, kuri gauna reikšmę arba reikšmes, tam tikru būdu jas apskaičiuoja ir pateikia rezultatą. Pavyzdžiui, funkcija SUM gauna jūsų nurodytas langelių koordinates arba diapazonus ir juos susumuoja. Šiame pavyzdyje ji gauna langelius nuo A1 iki A10 ir juos susumuoja. Programoje „Excel“ yra daugiau nei 400 funkcijų, kurias galite peržiūrėti skirtuke Formulės.\n"]
["Formulės, kuriose yra funkcijų, pradedamos lygybės ženklu, tada yra funkcijos pavadinimas su savo argumentais (reikšmės, kurias funkcija naudoja apskaičiuoti) skliausteliuose. \n"]
["Formulė patvirtinama paspaudus Enter. Tai padarius, formulė atliks skaičiavimą ir langelyje bus rodomas rezultatas. Norėdami pamatyti pačią formulę, galite pažiūrėti į formulės juostą, esančią žemiau juostelės, arba paspaudę F2 įjunkite redagavimo režimą ir langelyje pamatysite formulę. Dar kartą paspauskite Enter, kad užbaigtumėte formulę ir apskaičiuotumėte rezultatą.\n\n"]
["Kai kurie formulių paaiškinimai"]
["=10+20 yra formulė, kur 10 ir 20 yra konstantos, o + simbolis yra operatorius."]
["=SUM(A1:A10) yra formulė, kur SUM yra funkcijos pavadinimas, tarp atidarančiųjų ir uždarančiųjų skliaustelių yra argumentai, o A1:A10 yra funkcijos langelių diapazonas."]
["=SUM(A1:A10;C1:C10) yra formulė, kur SUM yra funkcijos pavadinimas, tarp atidarančiųjų ir uždarančiųjų skliaustelių yra argumentai, o A1:A10;C1:C10 yra funkcijos langelių diapazonai, atskirti kableliu."]
["NAUDINGA ŽINOTI: Konstantos yra reikšmės, kurias įvedate į langelius arba formules. Nors =10+20 skaičiavimo rezultatas gali būti toks pats kaip ir =A1+B1, šitaip naudoti konstantų nerekomenduojama. Kodėl? Nes negalite lengvai pamatyti konstantų nepažymint langelio ir jos neieškant. Todėl gali būti sunku jas vėliau pakeisti. Daug paprasčiau konstantas įvesti langeliuose, kur jas galima lengvai koreguoti ir nurodyti formulėse.\n\nPavyzdžiui: Pažymėkite žemiau esantį geltoną langelį, kuriame yra skaičius 12. Pamatysite, kad panaudojome funkciją SUM ir langelių diapazoną. Į formulę tiesiogiai neįvedėme „4“ ar „8“. \n"]
["Atgal"]
["Pirmyn"]
["Daugiau informacijos rasite žiniatinklyje"]
["„Excel“ naudojimas kaip skaičiuoklės"]
["„Excel“ formulių apžvalga"]
["„Excel“ funkcijos (pagal kategoriją) "]
["„Excel“ funkcijos (pagal abėcėlę) "]
["Nemokamas internetinis „Excel“ mokymas "]
{"$rows_empty":10}
[{"$nulls":9},"Reikšmės"]
[{"$nulls":9},4]
[{"$nulls":9},8]
[{"$nulls":9},{"$f":"SUM(J41:J42)","v":12}]

{"sheet":"Įvadas į funkcijas","index":2,"n_rows":51,"n_cols":7,"rows_kept":51}
["Įvadas į funkcijas"]
["Funkcijos suteikia galimybę atlikti įvairių dalykų, pvz., atlikti matematines operacijas, ieškoti reikšmių ar net skaičiuoti datą ir laiką. Pabandykime keletą būdų sudėti reikšmės naudojant funkciją SUM.",null,"Vaisiai","Suma",null,"Mėsa","Suma"]
["Po vaisių kiekio stulpelio (langelis D7) įveskite =SUM(D3:D6) arba surinkite =SUM(, tada pele pažymėkite tą diapazoną ir paspauskite Enter. Bus susumuotos reikšmės langeliuose D3, D4, D5 ir D6. Atsakymas turėtų būti 170.\n",null,"Obuoliai",50,null,"Jautiena",50]
["Dabar pabandykime Automatinė sudėtis. Pažymėkite geltoną langelį po mėsos stulpeliu (langelis G7), tada eikite į Formulės > Automatinė sudėtis > pasirinkite SUM. Matysite, kaip „Excel“ automatiškai įves formulę už jus. Patvirtinkite ją paspaudę Enter. Automatinės sudėties priemonėje yra visos dažniausiai naudojamos funkcijos.\n",null,"Apelsinai",20,null,"Vištiena",30]
["Štai naudingas spartusis klavišas. Pažymėkite langelį D15, tada paspauskite Alt =, tada Enter. SUM bus automatiškai įvesta už jus.",null,"Bananai",60,null,"Kiauliena",10]
["Daugiau informacijos sužinosite išanalizavę išsamiau",null,"Citrinos",40,null,"Žuvis",50]
["PAPILDOMA UŽDUOTIS\nPabandykite funkciją COUNT naudodami bet kurį iš jau išbandytų metodų. Funkcija COUNT suskaičiuoja diapazone esančių langelių, kuriuose yra skaičių, kiekį.",null,"SUM > ",{"$f":"SUM(D3:D6)","v":170},null,"SUM > "]
["Kitas veiksmas"]
["Daugiau informacijos apie funkcijas",null,"Prekė","Suma",null,"Prekė","Suma"]
["Eikite į skirtuką Formulės ir naršykite funkcijų biblioteką, kur funkcijos pateikiamos pagal kategoriją, pvz., Tekstas, Data ir laikas ir kt. Parinktis Įterpti funkciją leis ieškoti funkcijų pagal pavadinimą ir paleis vedlį, kuris gali padėti sukurti jūsų formulę. \n\nKai paspaudę = pradėsite rinkti funkcijos pavadinimą, „Excel“ paleis „IntelliSense“, kuri pateiks visas funkcijas, kurių pavadinimai prasideda jūsų įvestomis raidėmis. Radę norimą, paspauskite Tab ir „Excel“ automatiškai užbaigs funkcijos pavadinimą ir įves atidarančiąsias kabutes už jus. Bus taip pat rodomi pasirinktiniai ir privalomi argumentai. \n\n\n\nDabar paanalizuokime kelias funkcijas. Funkcijos SUM struktūra yra tokia:",null,"Duona",50,null,"Duona",50]
["Jei funkcija SUM galėtų prabilti, ji pasakytų „grąžinkime visų langeliuose nuo D35 iki D38 esančių reikšmių sumą ir visą stulpelį H. SUM yra funkcijos pavadinimas, D35:D38 yra pirmojo diapazono argumentas, kuris beveik visada būtinas, o H:H yra antrojo diapazono argumentas, atskiras kableliu. Pabandykime funkciją, kuriai nebūtini jokie argumentai.\n",null,"Spurgos",100,null,"Spurgos",100]
["Funkcija TODAY grąžina šiandienos datą. Ji automatiškai atnaujinama, kai „Excel“ perskaičiuoja.",null,"Sausainiai",40,null,"Sausainiai",40]
["PERŽIŪRĖKITE TAI\nPažymėkite šiuos langelius. Tada „Excel“ lango apatiniame dešiniajame kampe ieškokite SUM: 170 apatinėje juostoje. Tai vadinama būsenos juosta. Tai dar vienas būdas greiti rasti sumą ir kitą informaciją apie pažymėtą langelį arba diapazoną. ",null,"Tortai",50,null,"Tortai",50]
["SVARBI INFORMACIJA\nDukart spustelėkite šį langelį. Pabaigoje pastebėsite skaičių 100. Į formulę galima įtraukti skaičius tokiu būdu, tačiau to nerekomenduojame, nebent tai būtina. Tai vadinama konstanta ir lengva pamiršti, kad skaičius ten yra. Vietoj to, rekomenduojame sukurti nuoroda į kitą langelį, pvz., F51. Tokiu būdu skaičius yra lengvai pastebimas ir nepaslėptas formulėje. ",null,"Pyragai",20,null,"Pyragai",20]
["Daugiau informacijos rasite žiniatinklyje",null,"SUM > ",null,null,"COUNT >"]
["Viskas apie funkciją SUM"]
["Automatinės sudėties naudojimas skaičiams sudėti"]
["Viskas apie funkciją COUNT"]
["Nemokamas internetinis „Excel“ mokymas "]
["Atgal į viršų"]
["Kitas veiksmas"]
{"$rows_empty":12}
[null,null,"Vaisiai","Suma"]
[null,null,"Obuoliai",50]
[null,null,"Apelsinai",20]
[null,null,"Bananai",60]
[null,null,"Citrinos",40]
[null,null,"SUM > ",{"$f":"SUM(D35:D38)","v":170}]
[]
[]
[]
[]
[null,null,"Prekė","Suma"]
[null,null,"Automobiliai",20]
[null,null,"Sunkvežimiai",10]
[null,null,"Dviračiai",10]
[null,null,"Pačiūžos",40]
[]
[{"$nulls":3},"Iš viso:",null,"Papildoma reikšmė","Nauja suma"]
[{"$nulls":3},{"$f":"SUM(D45:D48,100)","v":180},null,100,{"$f":"SUM(D45:D48,F51)","v":180}]

{"sheet":"AVERAGE","index":3,"n_rows":15,"n_cols":7,"rows_kept":15}
["Funkcija AVERAGE"]
["Naudokite funkciją AVERAGE, kai norite gauti langelių diapazone esančių skaičių vidurkį.",null,"Vaisiai","Kiekis",null,"Mėsa","Kiekis"]
["Pažymėkite langelį D7, tada naudodami Automatinė sudėtis įtraukite funkciją AVERAGE.",null,"Obuoliai",50,null,"Jautiena",50]
["Dabar pažymėkite langelį G7 ir įveskite funkciją AVERAGE surinkdami =AVERAGE(G3:G6). ",null,"Apelsinai",20,null,"Vištiena",30]
["Langelyje D15 galite arba naudoti Automatinė sudėtis, arba rinkdami tekstą įvesti kitą AVERAGE funkciją. ",null,"Bananai",60,null,"Kiauliena",10]
["PERŽIŪRĖKITE TAI\nPažymėkite bet kokį skaičių diapazoną, tada pažvelgę į būsenos juostą pamatysite momentinį vidurkį.\n",null,"Citrinos",40,null,"Žuvis",50]
["Suaktyvinti ankstesnį lapą",null,"AVERAGE >",null,null,"AVERAGE >"]
["Pereiti į paskesnį lapą"]
["PAPILDOMA UŽDUOTIS\nPabandykite čia naudoti MEDIAN arba MODE. \n\nMEDIAN pateikia duomenų rinkinio vidurio reikšmę, o  \nMODE pateikia dažniausiai pasitaikančią reikšmę.\n",null,"Prekė","Kiekis",null,"Prekė","Kiekis"]
["Saitai, skirti rasti daugiau informacijos žiniatinklyje",null,"Duona",50,null,"Duona",50]
["Pasirinkite norėdami žiniatinklyje sužinoti viską apie funkciją AVERAGE",null,"Spurgos",100,null,"Spurgos",100]
["Pasirinkite norėdami žiniatinklyje sužinoti viską apie funkciją MEDIAN",null,"Sausainiai",40,null,"Sausainiai",40]
["Pasirinkite norėdami žiniatinklyje sužinoti viską apie funkciją MODE",null,"Tortai",50,null,"Tortai",50]
["Pasirinkite norėdami sužinoti apie nemokamą internetinį „Excel“ mokymą",null,"Pyragai",20,null,"Pyragai",20]
[null,null,"AVERAGE >"]

{"sheet":"MIN ir MAX","index":4,"n_rows":15,"n_cols":7,"rows_kept":15}
["Funkcijos MIN ir MAX"]
["Naudokite funkciją MIN, kai norite gauti langelių diapazone esantį mažiausią skaičių.",null,"Vaisiai","Kiekis",null,"Mėsa","Kiekis"]
["Naudokite funkciją MAX, kai norite gauti langelių diapazone esantį didžiausią skaičių.",null,"Obuoliai",50,null,"Jautiena",50]
["Pažymėkite langelį D7, tada naudodami automatinės sudėties vedlį įtraukite funkciją MIN.\n",null,"Apelsinai",20,null,"Vištiena",30]
["Dabar pažymėkite langelį G7 ir įveskite funkciją MAX surinkdami =MAX(D3:D6).\n",null,"Bananai",60,null,"Kiauliena",10]
["Langelyje D15 galite arba naudoti automatinės sudėties vedlį, arba rinkdami įvesti MIN arba MAX funkciją. \n",null,"Citrinos",40,null,"Žuvis",50]
["Daugiau informacijos rasite žiniatinklyje\n",null,"MIN >",null,null,"MAX >"]
["Viskas apie funkciją MIN"]
["Viskas apie funkciją MAX",null,"Prekė","Kiekis",null,"Prekė","Kiekis"]
["Nemokamas internetinis „Excel“ mokymas ",null,"Duona",50,null,"Duona",50]
["NAUDINGA ŽINOTI\nGalite naudoti MIN arba MAX su keliais diapazonais arba reikšmėmis, kad už tas reikšmes būtų parodyta didesnė arba mažesnė reikšmė, pvz., =MIN(A1:A10,B1:B10) arba =MAX(A1:A10,B1), kur langelyje B1 yra ribinė reikšmė, pvz., 10. Tokiu atveju formulė niekada negrąžins rezultato, mažesnio nei 10.\n",null,"Spurgos",100,null,"Spurgos",100]
[null,null,"Sausainiai",40,null,"Sausainiai",40]
[null,null,"Tortai",50,null,"Tortai",50]
[null,null,"Pyragai",20,null,"Pyragai",20]
[null,null,"MIN arba MAX >",{"$nulls":3},{"$f":"MIN(G10:G14,10)","v":10}]

{"sheet":"Data ir laikas","index":5,"n_rows":47,"n_cols":6,"rows_kept":47,"merged":[[4,2,4,3],[26,2,26,3],[30,2,30,3],[44,2,44,3]]}
["Datos funkcijos"]
["„Excel“ gali pateikti dabartinę datą pagal jūsų kompiuterio regiono parametrus. Taip pat galite pridėti arba atimti datas."]
["Išbandykite funkciją TODAY, kuri pateikia šiandienos datą. Tai yra tiesioginės, arba kintamos, funkcijos, todėl atidarius darbaknygę rytoj, joje bus rytojaus data. Langelyje D6 įveskite =TODAY(). \n"]
["Datų atėmimas. Įveskite savo ateinančią gimimo dieną YYYY-MM-DD formatu langelyje D7, tada langelyje D8 įveskite =D7-D6 ir stebėkite, kaip „Excel“ nurodys jums, kiek liko dienų.\n"]
["Datų įtraukimas. Tarkime, kad norite žinoti sąskaitos apmokėjimo terminą arba kada į biblioteką turite grąžinti knygą. Norėdami tai sužinoti, galite prie datos pridėti dienų. Langelyje D10 įveskite bet kokį dienų skaičių. Langelyje D11 įtraukėme=D6+D10, kad apskaičiuotume terminą pagal šiandienos datą.\n",null,"Datos funkcijos"]
["NAUDINGA ŽINOTI\n„Excel“ įrašo datą ir laiką pagal dienų skaičių, kuris pradedamas skaičiuoti nuo 1990 m. sausio 1 d. Laikas įrašomas trupmeninėmis dienos dalimis pagal minutes. Taigi 2017.01.01 12:30 iš tiesų įrašoma kaip 42736,5208. Jei laikas arba data rodomi šitaip, galite paspausti Ctrl + 1 > Skaičius > pasirinkite datos arba laiko formatą. ",null,"Šiandienos data:",null,null,{"$f":"IF(D6=TODAY(),\"Jums pavyko!\",\"\")","v":""}]
["SVARBI INFORMACIJA\nJei nenorite, kad „Excel“ rodytų neigiamą skaičių, nes dar neįvedėte savo gimtadienio, galite naudoti tokią IF funkciją: =IF(D7=\"\";\"\";D7-D6), kuri sako: „Jei D7 lygu niekam, tada nieko nerodyti, kitu atveju rodyti D7 minus D6“.\n",null,"Jūsų gimimo diena:"]
["Laiko funkcijos",null,"Dienos iki gimimo dienos:",{"$f":"D7-D6","v":0}]
["„Excel“ gali pateikti dabartinį laiką pagal jūsų kompiuterio regiono parametrus. Taip pat galite pridėti arba atimti laiką. Pavyzdžiui, galbūt norite sekti, kiek valandų darbuotojas dirbo kiekvieną savaitę, ir apskaičiuoti jų darbo užmokestį ir viršvalandžius.\n"]
["Langelyje D28 įveskite =NOW() ir bus pateiktas dabartinis laikas, kuris bus atnaujintas kaskart, kai „Excel“ skaičiuoja. Jei norite pakeisti laiko formatą, spauskite Ctrl + 1 > Skaičius > Laikas > pasirinkite norimą formatą.\n",null,"Atidėjimo laikotarpis dienomis:"]
["Valandų pridėjimas prie laiko. Langelyje D36 įvedėme =((D35-D32)-(D34-D33))*24. Taip apskaičiuojamas kažkieno darbo pradžios ir pabaigos laikas, tada atimamas laikas, kurį jie praleido pietaudami. Formulės pabaigoje esantis skaičius 24 konvertuoja „Excel“ matomą dienos trupmeninę dalį į valandas. Vis dėlto turėsite suformatuoti langelį kaip Skaičius. Norėdami tai padaryti, eikite į Pagrindinis > Formatuoti > Langeliai (Ctrl + 1) > Skaičius > Skaičius > 2 skaičiai po kablelio.\n\n",null,"Sąskaitos mokėjimo terminas:",{"$f":"D6+D10","v":"00:00:00"}]
["Jei ši formulė galėtų kalbėti, ji pasakytų: „Paimkime pabaigos laiką ir iš jo atimkime pradžios laiką, tada atimkime pietų pradžios / pabaigos laiką, tada viską padauginkime iš 24, kad konvertuotume „Excel“ trupmeninį laiką į valandas“ arba =((Darbo pradžia - Darbo pabaiga)-(Pietų pradžia - Pietų pabaiga))*24."]
["Atgal"]
["Pirmyn"]
["Daugiau informacijos rasite žiniatinklyje"]
["Viskas apie funkciją TODAY"]
["Viskas apie funkciją NOW"]
["Viskas apie funkciją DATE"]
["Nemokamas internetinis „Excel“ mokymas "]
{"$rows_empty":7}
[null,null,"Laiko funkcijos"]
[null,null,"Dabartinis laikas:"]
[]
[]
[null,null,"Dienos dirbtų valandų skaičius"]
[null,null,"Darbo pradžia:","08:00:00"]
[null,null,"Pietų pabaiga:","12:00:00"]
[null,null,"Pietų pradžia:","13:00:00"]
[null,null,"Darbo pabaiga:","17:00:00"]
[null,null,"Bendrasis valandų skaičius:",{"$f":"((D35-D32)-(D34-D33))*24","v":8.000000000000002}]
{"$rows_empty":8}
[null,null,"Statinė data ir laikas"]
[null,null,"Data:","2017-09-27"]
[null,null,"Laikas:","08:52:00"]

{"sheet":"Teksto ir skaičių jungimas","index":6,"n_rows":37,"n_cols":6,"rows_kept":37,"merged":[[26,2,26,3],[30,2,30,3],[34,2,34,3]]}
["Skirtingų langelių teksto jungimas"]
["Dažnai būna, kad dirbant programa „Excel“ reikia sujungti tekstą, esantį skirtinguose langeliuose. Labai dažnas pavyzdys yra, kai turite vardą ir pavardę atskirai ir norite juos sujungti, kad būtų vardas, pavardė arba vardas ir pavardė.  Laimei, „Excel“ leidžia tai atlikti naudojant & ženklą, kurį galite įvesti paspaudę Shift + 7.\n",null,"Vardas","Pavardė","Pavardė, vardas","Vardas ir pavardė"]
["Langelyje E3 įveskite =D3&C3, kad sujungtumėte vardą ir pavardę. \n",null,"Miglė","Bočkutė",{"$f":"D3&\", \"&C3","v":"Bočkutė, Miglė"},{"$f":"C3&\" \"&D3","v":"Miglė Bočkutė"}]
["BočkutėMiglė neatrodo teisingai. Reikia įtraukti kablelį ir tarpą. Norėdami tai padaryti, naudosime kabutes ir naują teksto eilutę. Šįkart įveskite =D3&\", \"&C3. Dalis &\", \"& leidžia sujungti kablelį ir tarpą su tekstu langeliuose.\n",null,"Linas","Petkus"]
["Norėdami sukurti vardą ir pavardę, sujungsime atskirus vardą ir pavardę, bet naudosime tarpą be kablelio. Langelyje F3 įveskite =C3&\" \"&D3.\n",null,"Jonas","Adomavičius"]
["Daugiau informacijos sužinosite išanalizavę išsamiau",null,"Marija","Saulėnaitė"]
["Pirmyn",null,"Rimas","Linkus"]
["Teksto ir skaičių naudojimas kartu",null,"Mykolas","Antanaitis"]
["Dabar naudosime &, kad sujungtume tekstą su skaičiais, ne tik tekstą su tekstu\n\nPažiūrėkite į langelius C28:D29. Pamatysite, kad data ir laikas yra atskiruose langeliuose. Galite juos sujungti naudodami & ženklą, kaip langeliuose C32:C33, bet tai neatrodo gerai, ar ne? Deja, „Excel“ nežino, kaip norite formatuoti skaičius, todėl juos pateikia paprasčiausiu formatu, kuris šiuo atveju yra datų seka. Reikia aiškia nurodyti „Excel“, kaip formatuoti formulės skaitinę dalį, kad gaunamoje teksto eilutėje ji būtų rodoma taip, kaip norite. Tai galite padaryti naudodami funkciją TEXT ir formato kodą.",null,"Robertas","Zinkus"]
["Langelyje C36 įveskite =C28&\" \"&TEXT(D28,\"YYYY-MM-DD\"). YYYY-MM-DD yra JAV formato kodas, kuris reiškia Metai-Mėnesis-Diena, pvz., 2017-09-25.\n",null,"Emilija","Butkutė"]
["Langelyje C37 įveskite =C29&\" \"&TEXT(D29,\"HH:MM\"). HH:MM yra JAV formato kodas, kuris reiškia Valandos:Minutės AM (iki vidurdienio) arba PM (po vidurdienio), pvz., 1:30 PM.\n\n"]
["PERŽIŪRĖKITE TAI\nFormules, ypač ilgas, kartais gali būti sunku skaityti, bet galite jas išskaidyti dalimis naudodami tarpus maždaug taip:\n\n=C28 & \" \" & TEXT(D28,\"YYYY-MM-DD\")"]
["VERTA PERŽIŪRĖTI\nJei nežinote, kokį formato kodą naudoti, galite naudoti Ctrl + 1 > Skaičius, kad suformatuotumėte bet kokį langelį norimu būdu. Tada pasirinkite parinktį Pasirinktinis. Galite nukopijuoti rodomą formato kodą į savo formulę."]
["Daugiau informacijos rasite žiniatinklyje"]
["Viskas apie funkciją TEXT"]
["Teksto ir skaičių jungimas"]
["Nemokamas internetinis „Excel“ mokymas "]
{"$rows_empty":9}
[null,null,"Teksto ir skaičių naudojimas"]
[null,null,"Šiandienos data:",{"$f":"TODAY()","v":"2021-10-19"}]
[null,null,"Dabartinis laikas:",{"$f":"NOW()","v":44488.43510763889}]
[]
[null,null,"Teksto ir skaičių jungimas"]
[null,null,{"$f":"C28&\" \"&D28","v":"Šiandienos data: 44488"}]
[null,null,{"$f":"C29&\" \"&D29","v":"Dabartinis laikas: 44488.4351076389"}]
[]
[null,null,"Teksto ir skaičių formatavimas"]
[null,null,{"$f":"C28 &\" \"& TEXT(D28,\"YYYY-MM-DD\")","v":"Šiandienos data: 2021-10-19"}]
[null,null,{"$f":"C29&\" \"&TEXT(D29,\"HH:MM\")","v":"Dabartinis laikas: 10:26"}]

{"sheet":"IF sakiniai","index":7,"n_rows":37,"n_cols":6,"rows_kept":37,"merged":[[7,2,7,3]]}
["IF sakiniai"]
["IF sakiniai leidžia atlikti loginius sąlygų palyginimus. IF sakinys paprastai nurodo, kad jei viena sąlyga yra teisinga, reikia kažką daryti; kitu atveju reikia daryti kažką kitą. Formulės gali grąžinti tekstą, reikšmes ar dar daugiau skaičiavimų."]
["Langelyje D9 įveskite =IF(C9=\"Obuolys\";TRUE;FALSE). Teisingas atsakymas yra TRUE (teisinga). \n"]
["Nukopijuokite D9 į D10. Čia atsakymas turėtų būti FALSE (neteisinga), nes apelsinas nėra obuolys.\n"]
["Pabandykime kitą pavyzdį, pažvelgdami į langelyje C12 esančią formulę. Langelyje jau įvesta =IF(C12<100;\"Mažiau nei 100\";\"Daugiau arba lygu 100\"). Kas nutiks, jei langelyje C12 įvesite skaičių, didesnį nei 100?\n"]
["SVARBI IŠSAMI INFORMACIJA\nTRUE ir FALSE yra nepanašūs į kitus „Excel“ formulių žodžius tuo, kad jų nereikia rašyti kabutėse, o „Excel“ juos automatiškai pavers didžiosiomis raidėmis. Skaičių taip pat nereikia rašyti kabutėse. Paprastą tekstą, pvz., Taip arba Ne, reikia rašyti kabutėse, kaip čia: \n=IF(C9=\"Obuolys\";\"Taip\";\"Ne\")"]
["Daugiau informacijos sužinosite išanalizavę išsamiau"]
["Pirmyn",null,"IF sakiniai"]
["IF sakinys kartu su kita funkcija",null,"Obuolys"]
["IF sakiniai taip pat gali padaryti, kad būtų atlikti papildomi skaičiavimai, jei patenkinama tam tikra sąlyga. Šiame pavyzdyje įvertinsime langelio reikšmę, kad sužinotume, ar reikia taikyti pardavimo mokestį, ir, jei sąlyga teisinga, jį apskaičiuosime.\n",null,"Apelsinas"]
["Langelyje F33 įvedėme =IF(E33=\"Taip\";F31*PardavimųMokestis;0); nustatėme PardavimųMokestis kaip įvardytąjį diapazoną, kurio reikšmė 0,0825. Mūsų formulė nurodo, kad jei langelis E33 lygus Taip, tai langelį F31 reikia padauginti iš PardavimųMokestis, kitu atveju grąžinti 0.\n\nLangelyje E33 pabandykite pakeisti Taip į Ne, kad pamatytumėte, ar skaičiavimas pasikeis."]
["Tada įtraukėme IF sakinį, kad nustatytume, ar būtinas siuntimas. Langelyje F35 pamatysite =IF(E35=\"Taip\";SUM(D28:D29)*1,25;0). Jame nurodoma: „Jei langelio E35 reikšmė Taip, paimkime stulpelio Kiekis, esančio lentelėje aukščiau, sumą ir padauginkime ją iš 1,25, kitu atveju grąžinkime 0“.\n",null,50,{"$f":"IF(C12<100,\"Mažiau nei 100\",\"Mažiau nei 100\")","v":"Mažiau nei 100"}]
["Tada langelyje F35 esančioje formulėje pakeiskite 1,25 į „Pristatymas“. Pradėjus vesti tekstą, „Excel“ automatinio taisymo funkcija turėtų jį rasti. Kai ras, paspauskite Tab ir tekstas bus įvestas. Tai įvardytasis diapazonas, kurį įvedėme iš dalies Formulės > Apibrėžti pavadinimą. Jei jums kada nors reiktų pakeisti siuntimo išlaidas, tai padaryti reikės tik vienoje vietoje, pavadinimą „Siuntimas“ galite naudoti bet kurioje darbaknygės vietoje.\n\n"]
["NAUDINGA ŽINOTI\nKai sukuriate formulę, „Excel“ automatiškai sukuria spalvotas kraštines aplink visus formulėje nurodytus diapazonus; atitinkami formulėje esantys diapazonai bus tos pačios spalvos. Galite pamatyti, kaip tai veikia, jei pažymėsite langelį F33 ir paspausite F2, kad galėtumėte redaguoti formulę."]
["SPECIALISTO PATARIMAS\nĮvardytieji diapazonai leidžia apibrėžti sąvokas arba reikšmes vienoje vietoje, o tada jas pakartotinai naudoti visoje darbaknygėje. Visus šioje darbaknygėje esančius įvardytuosius diapazonus galite pamatyti paspaudę Formulės > Pavadinimų tvarkytuvas. Spustelėkite čia ir sužinokite daugiau.\n"]
["Atgal"]
["Pirmyn"]
["Daugiau informacijos rasite žiniatinklyje"]
["Viskas apie funkciją IF"]
["Viskas apie funkciją IFS"]
["Išplėstiniai IF sakiniai"]
["Nemokamas internetinis „Excel“ mokymas "]
[]
[]
[]
[]
[null,null,"Prekė","Kiekis","Kaina","Iš viso"]
[null,null,"Įtaisas",2,{"v":9.760711585683554,"d":"9.76 EUR"},{"$f":"'IF sakiniai'!$E$28:$E$29*'IF sakiniai'!$D$28:$D$29","v":{"v":19.521423171367108,"d":"19.52 EUR"}}]
[null,null,"Reikmuo",3,{"v":3.4189202461080024,"d":"3.42 EUR"},{"$f":"'IF sakiniai'!$E$28:$E$29*'IF sakiniai'!$D$28:$D$29","v":{"v":10.256760738324008,"d":"10.26 EUR"}}]
[]
[{"$nulls":3},"Tarpinė suma",{"$f":"SUM('IF sakiniai'!$E$28:$E$29)","v":{"v":13.179631831791557,"d":"13.18 EUR"}},{"$f":"SUM('IF sakiniai'!F28:F29)","v":{"v":29.778183909691116,"d":"29.78 EUR"}}]
[]
[{"$nulls":3},"Pardavimo mokestis?","Taip",{"$f":"IF(E33=\"Taip\",F31*PardavimoMokestis,0)","v":{"v":2.456700172549517,"d":"2.46 EUR"}}]
[]
[{"$nulls":3},"Pristatymas?","Taip",{"$f":"IF(E35=\"Taip\",SUM(D28:D29)*1.25,0)","v":{"v":6.25,"d":"6.25 EUR"}}]
[]
[{"$nulls":3},"Iš viso",null,{"$f":"SUM(F33,F31,F35)","v":{"v":38.48488408224063,"d":"38.48 EUR"}}]

{"sheet":"VLOOKUP","index":8,"n_rows":43,"n_cols":7,"rows_kept":43}
["VLOOKUP"]
["VLOOKUP yra viena dažniausiai naudojamų „Excel“ funkcijų (taip pat ir viena iš mūsų mėgstamiausių!). VLOOKUP leidžia ieškoti reikšmės stulpelyje kairėje, tada, jei randa atitikmenį, pateikia informaciją kitame stulpelyje dešinėje. VLOOKUP sako:\n"]
["=VLOOKUP(A1;B:C;2;FALSE)"]
["Ko norite ieškoti?"]
["Jei randate, iš kelinto stulpelio į dešinę norite gauti reikšmę?"]
["Kur norite ieškoti?"]
["Norite tikslios ar apytikslės reikšmės?"]
["Langelyje D22 įveskite =VLOOKUP(C22;C17:D20;2;FALSE). Teisingas atsakymas ieškant obuolių – 50. VLOOKUP ieškojo obuolių, juos rado, tada perėjo į dešinėje esantį stulpelį ir grąžino kiekį.\n\n"]
["Dabar pabandykite patys dalyje Mėsa, esančioje stulpelyje G22. Turėtumėte gauti formulę =VLOOKUP(F22;F17:G20;2;FALSE).\n\n"]
["EKSPERIMENTAS\nIšplečiamuosiuose sąrašuose pamėginkite pasirinkti kitus elementus. Pamatysite, kaip rezultatų langeliuose iškart atsiras naujos reikšmės."]
["Daugiau informacijos sužinosite išanalizavę išsamiau"]
["Pirmyn"]
["VLOOKUP ir #N/A"]
["Nuolat susidursite su situacijomis, kai VLOOKUP neras to, ko prašėte, ir grąžins klaidos pranešimą (#N/A). Kartais taip yra dėl to, kad peržvalgos reikšmės tiesiog nėra arba nuorodos langelyje dar nėra reikšmės.\n"]
["Jei žinote, kad norima peržvalgos reikšmė yra, bet norite paslėpti klaidos pranešimą, jei peržvalgos langelis tuščias, galite naudoti IF sakinį. Tokiu atveju langelyje D43 savo esamą VLOOKUP formulę patalpinsime IF sakinyje:\n\n=IF(C43=\"\";\"\";VLOOKUP(C43;C37:D41;2;FALSE))\n\nČia nurodoma, kad jei langelis C43 lygus niekam (\"\"), tai nieko negrąžinti, kitu atveju grąžinti VLOOKUP rezultatus. Atkreipkite dėmesį į antrą uždarantįjį skliaustelį formulės pabaigoje. Jis uždaro IF sakinį.\n"]
["Jei nesate tikri, ar jūsų peržvalgos reikšmė yra, bet norite nerodyti #N/A klaidos pranešimo, langelyje G43 galite naudoti klaidų apdorojimo funkciją pavadinimu IFERROR: =IFERROR(VLOOKUP(F43;F37:G41;2;FALSE);\"\"). IFERROR nurodo, kad jei VLOOKUP grąžina leistiną rezultatą, tada jį rodyti, priešingu atveju nieko nerodyti (\"\"). Čia nieko neparodėme (\"\"), tačiau taip pat galite naudoti skaičius (0, 1, 2 ir kt.) arba tekstą, pvz., „Formulė neteisinga“.\n",null,"Vaisiai","Kiekis",null,"Mėsa","Kiekis"]
["SVARBI INFORMACIJA\nIFERROR yra vadinamoji bendroji klaidų apdorojimo priemonė. Tai reiškia, kad ji nerodys jokios klaidos, kurią gali pateikti jūsų formulė. Tai gali sukelti problemų, jei „Excel“ pateikia pranešimą, kad jūsų formulėje yra tikra klaida, kurią reikia ištaisyti.\n\nApskritai į formules geriausia neįtraukti klaidų apdorojimo priemonių, nebent esate visiškai tikri, kad jos veiks tinkamai.",null,"Obuoliai",50,null,"Jautiena",50]
["Atgal",null,"Apelsinai",20,null,"Vištiena",30]
["Pirmyn",null,"Bananai",60,null,"Kiauliena",10]
["Daugiau informacijos rasite žiniatinklyje",null,"Citrinos",40,null,"Žuvis",50]
["Viskas apie funkciją VLOOKUP"]
["Viskas apie funkcijas INDEX / MATCH",null,"Obuoliai",null,null,"Kiauliena"]
["Viskas apie funkciją IFERROR"]
["„PivotTable“ naudojimas darbalapio duomenis analizuoti"]
["Nemokamas internetinis „Excel“ mokymas "]
{"$rows_empty":9}
[null,null,"Jei langelyje D42 esanti funkcija SUM galėtų prabilti, ji ištartų: Sudėkite reikšmes langeliuose D38, D39, D40 ir D41."]
[null,null,"Prekė","Kiekis",null,"Prekė","Kiekis"]
[null,null,"Duona",50,null,"Duona",50]
[null,null,"Spurgos",100,null,"Spurgos",100]
[null,null,"Sausainiai",40,null,"Sausainiai",40]
[null,null,"Tortai",50,null,"Tortai",50]
[null,null,"Pyragai",20,null,"Pyragai",20]
[]
[{"$nulls":3},{"$f":"VLOOKUP(C43,C37:D41,2,FALSE)","v":{"$error":"#N/A"}},null,"Kepiniai",{"$f":"IFERROR(VLOOKUP(F43,F37:G41,2,FALSE),\"\")","v":""}]

{"sheet":"Sąlyginės funkcijos","index":9,"n_rows":123,"n_cols":34,"rows_kept":123}
["Sąlyginės funkcijos – SUMIF"]
["Sąlyginės funkcijos leidžia gauti diapazono sumą, vidurkį, kiekį arba mažiausią arba didžiausią reikšmę, atsižvelgiant į tam tikrą jūsų nurodytą sąlygą arba kriterijus. Pavyzdžiui, kiek yra obuolių iš visų sąraše esančių vaisių? Arba kiek yra Floridos tipo apelsinų?",null,"Vaisiai","Kiekis",null,"Vaisiai","Tipas","Kiekis",{"$nulls":17},"Vaisiai",null,"Obuoliai",null,"Apelsinai",null,"Bananai",null,"Citrinos"]
["SUMIF leidžia sumuoti viename diapazone, atsižvelgiant į konkrečius kriterijus, kurių ieškote kitame diapazone, pvz., kiek yra obuolių. Pažymėkite langelį D17 ir įveskite =SUMIF(C3:C14;C17;D3:D14). SUMIF struktūra yra tokia:",null,"Obuoliai",50,null,"Obuoliai","„Fuji“",50,{"$nulls":17},"Obuoliai",null,"„Fuji“",null,"„Florida“",null,"„Cavendish“",null,"Raukšlėtosios"]
["=SUMIF(C3:C14;C17;D3:D14)",null,"Apelsinai",20,null,"Apelsinai","„Florida“",20,{"$nulls":17},"Apelsinai",null,"„Honeycrisp“",null,"„Navel“",null,"„Lady Finger“",null,"„Eureka“"]
["Kuriame diapazone norite ieškoti?",null,"Bananai",60,null,"Bananai","„Cavendish“",60,{"$nulls":17},"Bananai"]
["Kokios reikšmės (teksto arba skaičiaus) norite ieškoti?",null,"Citrinos",40,null,"Citrinos","Raukšlėtosios",40,{"$nulls":17},"Citrinos"]
["Radus kiekvieną atitikmenį, kurį diapazoną norite sumuoti?",null,"Obuoliai",50,null,"Obuoliai","„Honeycrisp“",50]
["SUMIFS veikia taip pat, kaip SUMIF, bet leidžia naudoti kelis kriterijus. Taigi šiame pavyzdyje užuot ieškoję tik vaisiaus, galite ieškoti vaisiaus ir tipo. Pažymėkite langelį H17 ir įveskite =SUMIFS(H3:H14;F3:F14;F17;G3:G14;G17). SUMIFS struktūra yra tokia:\n",null,"Apelsinai",20,null,"Apelsinai","„Navel“",20]
["=SUMIFS(H3:H14;F3:F14;F17;G3:G14;G17)",null,"Bananai",60,null,"Bananai","„Lady Finger“",60]
["Kokį diapazoną norite sumuoti?",null,"Citrinos",40,null,"Citrinos","„Eureka“",40]
["Tai pirmasis diapazonas, kuriame ieškoma atitikmenų",null,"Obuoliai",50,null,"Obuoliai","„Honeycrisp“",50]
["Tai pirmojo atitikmens kriterijai",null,"Apelsinai",20,null,"Apelsinai","„Navel“",20]
["Tai antrasis diapazonas, kuriame ieškoma atitikmenų",null,"Bananai",60,null,"Bananai","„Cavendish“",60]
["Tai antrojo atitikmens kriterijai",null,"Citrinos",40,null,"Citrinos","„Eureka“",40]
["SPECIALISTO PATARIMAS\nKiekviename Vaisiaus ir Tipo langelyje yra išplečiamasis sąrašas, kuriame galite pasirinkti skirtingus vaisius. Pabandykite ir stebėkite, kaip formulės automatiškai atnaujinamos."]
["Daugiau informacijos sužinosite išanalizavę išsamiau",null,"Vaisiai","SUMIF",null,"Vaisiai","Tipas","SUMIFS"]
["Kitas veiksmas",null,"Obuoliai",null,null,"Apelsinai","„Florida“"]
["Sąlyginės funkcijos – COUNTIF"]
["COUNTIF ir COUNTIFS leidžia suskaičiuoti diapazono reikšmes, atsižvelgiant į jūsų nustatytus kriterijus. Šios funkcijos šiek tiek skiriasi nuo kitų IF ir IFS funkcijų tuo, kad jose yra tik kriterijų diapazonas ir kriterijai. Jos nevertina vieno diapazono ir tada neperžiūri kito, kad padarytų išvadas."]
["Pažymėkite langelį D64 ir įveskite =COUNTIF(C50:C61;C64). COUNTIF struktūra yra tokia:"]
["=COUNTIF(C50:C61;C64)"]
["Kuriame diapazone norite ieškoti?"]
["Kokios reikšmės (teksto arba skaičiaus) norite ieškoti?"]
["COUNTIFS veikia taip pat, kaip SUMIF, bet leidžia naudoti kelis kriterijus. Taigi šiame pavyzdyje užuot ieškoję tik vaisiaus, galite ieškoti vaisiaus ir tipo. Pažymėkite langelį H64 ir įveskite =COUNTIFS(F50:F61;F64;G50:G61;G64). COUNTIFS struktūra yra tokia:\n"]
["=COUNTIFS(F50:F61;F64;G50:G61;G64)"]
["Tai pirmasis apskaičiuotinas diapazonas"]
["Tai pirmojo atitikmens kriterijai"]
["Tai antrasis apskaičiuotinas diapazonas"]
["Tai antrojo atitikmens kriterijai"]
["Daugiau informacijos sužinosite išanalizavę išsamiau"]
["Pirmyn"]
["Daugiau sąlyginių funkcijų"]
["Jau susipažinote su SUMIF, SUMIFS, COUNTIF ir COUNTIFS. Dabar galite pabandyti patys dirbti su kitomis funkcijomis, pvz., AVERAGEIF/S, MAXIFS, MINIFS. Jos visos yra tos pačios struktūros, todėl kai jau parašyta viena formulė, galite tiesiog pakeisti jos funkcijos pavadinimą kitu. Parašėme visas funkcijas, kurių galite norėti langelyje E106, todėl galite jas nukopijuoti ir įklijuoti arba pabandyti jas įvesti patys, kad pasipraktikuotumėte.\n\nSUMIF  =SUMIF(C92:C103;C106;E92:E103) \nSUMIFS  =SUMIFS(E92:E103;C92:C103;C106;D92:D103;D106) \nAVERAGEIF  =AVERAGEIF(C92:C103;C106;E92:E103) \nAVERAGEIFS =AVERAGEIFS(E92:E103;C92:C103;C106;D92:D92;D106)\nCOUNTIF  =COUNTIF(C92:C103;C106)\nCOUNTIFS  =COUNTIFS(C92:C103;C106;D92:D103;D106) \nMAXIFS  =MAXIFS(E92:E103;C92:C103;C10;D92:D103;D106)\nMINIFS  =MINIFS(E92:E103;C92:C103;C106;D92:D103;D106)\n"]
["Daugiau informacijos sužinosite išanalizavę išsamiau"]
["Pirmyn"]
["SUMIF su reikšmės argumentu"]
["Štai SUMIF funkcijos pavyzdys, kurioje naudojama „daugiau nei“ (>), kad būtų surastos visos reikšmės, didesnės nei nustatytas kiekis:"]
[{"$f":"SUMIF(D118:D122,\">=50\")","v":200}]
["Sudėkite daugiau reikšmių pagal šį kriterijų:"]
["... Peržiūrėkite šiuos langelius...\n "]
["...jei reikšmė yra didesnė nei 50, sudėkite.\n "]
["PASTABA. Jei kuriate daug sąlyginių formulių, galbūt verta naudoti geresnį sprendimą – „PivotTable“. Daugiau informacijos rasite peržiūrėję šį „PivotTable“ straipsnį."]
["Daugiau informacijos rasite žiniatinklyje"]
["Viskas apie funkciją SUMIF"]
["Viskas apie funkciją SUMIFS"]
["Viskas apie funkciją COUNTIF"]
["Viskas apie funkciją COUNTIFS"]
["Viskas apie funkciją AVERAGEIF"]
["Viskas apie funkciją AVERAGEIFS",null,"Vaisiai","Kiekis",null,"Vaisiai","Tipas","Kiekis"]
["Viskas apie funkciją MINIFS",null,"Obuoliai",50,null,"Obuoliai","„Fuji“",50]
["Viskas apie funkciją MAXIFS",null,"Apelsinai",20,null,"Apelsinai","„Florida“",20]
["Išplečiamojo sąrašo kūrimas",null,"Bananai",60,null,"Bananai","„Cavendish“",60]
["Nemokamas internetinis „Excel“ mokymas ",null,"Citrinos",40,null,"Citrinos","Raukšlėtosios",40]
["Atgal į viršų",null,"Obuoliai",50,null,"Obuoliai","„Honeycrisp“",50]
["Pirmyn",null,"Apelsinai",20,null,"Apelsinai","„Navel“",20]
[null,null,"Bananai",60,null,"Bananai","„Lady Finger“",60]
[null,null,"Citrinos",40,null,"Citrinos","„Eureka“",40]
[null,null,"Obuoliai",50,null,"Obuoliai","„Honeycrisp“",50]
[null,null,"Apelsinai",20,null,"Apelsinai","„Navel“",20]
[null,null,"Bananai",60,null,"Bananai","„Cavendish“",60]
[null,null,"Citrinos",40,null,"Citrinos","„Eureka“",40]
[]
[null,null,"Vaisiai","COUNTIF",null,"Vaisiai","Tipas","COUNTIFS"]
[null,null,"Obuoliai",{"$f":"COUNTIF(C50:C61,C64)","v":3},null,"Apelsinai","„Florida“",{"$f":"COUNTIFS(F50:F61,F64,G50:G61,G64)","v":1}]
{"$rows_empty":26}
[null,null,"Vaisiai","Tipas","Kiekis"]
[null,null,"Obuoliai","„Fuji“",50]
[null,null,"Apelsinai","„Florida“",20]
[null,null,"Bananai","„Cavendish“",60]
[null,null,"Citrinos","Raukšlėtosios",40]
[null,null,"Obuoliai","„Honeycrisp“",50]
[null,null,"Apelsinai","„Navel“",20]
[null,null,"Bananai","„Lady Finger“",60]
[null,null,"Citrinos","„Eureka“",40]
[null,null,"Obuoliai","„Honeycrisp“",50]
[null,null,"Apelsinai","„Navel“",20]
[null,null,"Bananai","„Cavendish“",60]
[null,null,"Citrinos","„Eureka“",40]
[]
[null,null,"Vaisiai","Tipas","Pabandykite"]
[null,null,"Citrinos","„Eureka“",{"$f":"AVERAGEIFS(E92:E103,C92:C103,C106,D92:D103,D106)","v":40}]
{"$rows_empty":10}
[null,null,"Prekė","Kiekis"]
[null,null,"Duona",50]
[null,null,"Spurgos",100]
[null,null,"Sausainiai",40]
[null,null,"Tortai",50]
[null,null,"Pyragai",20]
[{"$nulls":3},{"$f":"SUMIF(D118:D122,\">=50\")","v":200}]

{"sheet":"Funkcijų vedlys","index":10,"n_rows":14,"n_cols":4,"rows_kept":14}
["Tegu funkcijų vedlys jus veda"]
["Jei žinote norimos funkcijos pavadinimą, bet nesate tikri, kaip ją sukurti, jums padės funkcijų vedlys.\n"]
["Pažymėkite langelį D10, tada eikite į Formulės > Įterpti funkciją > laukelyje Ieškoti funkcijos įveskite VLOOKUP ir paspauskite Vykdyti. Pamatę pažymėtą VLOOKUP, apačioje spustelėkite Gerai. Iš sąrašo pasirinkus funkciją, „Excel“ parodys jos sintaksę.\n"]
["Tada įveskite argumentus atitinkamuose teksto laukuose. Jums įvedant kiekvieną argumentą, „Excel“ jį įvertins ir pateiks rezultatą, o galutinis rezultatas bus apačioje. Pereinant į kiekvieną sekciją, kiekvieno argumento kriterijai pateikiami formos apačioje. Baigę spustelėkite Gerai ir „Excel“ už jus įves formulę.\n\n\n",null,"Vaisiai","Kiekis"]
["PERŽIŪRĖKITE TAI\nTurėtumėte gauti formulę =VLOOKUP(C10;C5:D8;2;FALSE)",null,"Obuoliai",50]
["NAUDINGA ŽINOTI\nGalite įvesti langelių ir diapazonų koordinates arba juos pažymėti pele.",null,"Apelsinai",20]
["NAUDINGA ŽINOTI\nPereinant į kiekvieno argumento sekciją, argumento aprašas rodomas formos apačioje, virš formulės rezultato.\n",null,"Bananai",60]
["Atgal",null,"Citrinos",40]
["Pirmyn"]
["Daugiau informacijos rasite žiniatinklyje",null,"Obuoliai",{"$f":"VLOOKUP(C10,C5:D8,2,FALSE)","v":50}]
["„Excel“ formulių apžvalga"]
["„Excel“ funkcijos (pagal kategoriją)"]
["„Excel“ funkcijos (pagal abėcėlę)"]
["Nemokamas internetinis „Excel“ mokymas "]

{"sheet":"Formulių klaidos","index":11,"n_rows":36,"n_cols":4,"rows_kept":36}
["Formulių klaidų taisymas"]
["Anksčiau ar vėliau susidursite su formule, kurioje yra klaida. „Excel“ tą klaidą rodys kaip #ErrorName. Klaidos gali būti naudinga, nes jos nurodo, kad kažkas neveikia, bet ištaisyti jas gali būti sudėtinga. Laimei, yra keletas būdų, galinčių padėti rasti klaidos šaltinį ir klaidą ištaisyti.\n"]
["Klaidų tikrinimas. Eikite į Formulės > Klaidų tikrinimas. Bus atidarytas dialogo langas, kuris nurodys jūsų konkrečios klaidos bendrą priežastį. Langelyje D9 klaida #N/A įvyko, nes nėra reikšmės, atitinkančios reikšmę „Obuolys“. Klaidą galite ištaisyti, jei naudosite esamą reikšmę, nerodysite klaidos naudodami IFERROR arba jos nepaisysite žinodami, kad ji išnyks, kai naudosite esamą reikšmę.\n",null,"Vaisiai","Suma"]
["Jei spustelėsite Paaiškinimas apie šią klaidą, bus atidaryta žinyno tema, aprašanti šį klaidos pranešimą. Jei spustelėsite Rodyti skaičiavimo veiksmus, bus atidarytas dialogo langas Formulės vertinimas.\n",null,"Obuoliai",50]
["Kaskart paspaudus Vertinti, „Excel“ peržiūrės kiekvieną formulės sekciją. Programa nebūtinai nurodys, kodėl įvyko klaida, bet parodys, kur. Tada peržiūrėkite žinyno temą, kad nustatytumėte, kas nutiko su formule.\n",null,"Apelsinai",20]
["EKSPERIMENTAS\nKas čia negerai? Užuomina. Bandome susumuoti visus elementus.",null,"Bananai",60]
["NAUDINGA ŽINOTI\nSpustelėję Parinktys galėsite nustatyti taisykles, nurodančias, kada „Excel“ turėtų klaidas rodyti arba jų nepaisyti.\n",null,"Citrinos",40]
["Atgal"]
["Pirmyn",null,"Obuolys",{"$f":"VLOOKUP(C9,C3:D7,2,FALSE)","v":{"$error":"#N/A"}}]
["Daugiau informacijos rasite žiniatinklyje"]
["Klaidų formulėse aptikimas"]
["Kaip išvengti neveikiančių formulių"]
["Įdėtosios formulės vertinimas žingsnis po žingsnio"]
["Nemokamas internetinis „Excel“ mokymas "]
{"$rows_empty":15}
[null,null,"Vaisiai","Kiekis"]
[null,null,"Obuoliai",50]
[null,null,"Apelsinai",20]
[null,null,"Bananai",60]
[null,null,"Citrinos",40]
[]
[null,null,"Iš viso",{"$f":"sume(D31:D34)","v":{"$error":"#NAME?"}}]

{"sheet":"Sužinokite daugiau","index":12,"n_rows":5,"n_cols":1,"rows_kept":5}
["Turite daugiau klausimų apie „Excel“?"]
["Paspauskite ALT + Q ir įveskite tai, ką norite sužinoti."]
["Tęskite toliau. Yra daugybė dalykų, kuriuos galite išmokti naudodami „Excel“:"]
["Bendruomenė: Užduokite klausimus ir bendraukite su mėgstančiais „Excel“.\n"]
["Kas dar naujo?\n„Office 365“ prenumeratoriai gauna nuolatinius naujinimus ir naujas funkcijas.\n\n"]